bitfinex-derivatives/quotes_BTCF0:USTF0_20240814
["timestamp","ask_amount","ask_price","bid_price","bid_amount"]
[1723636915790,0.3618,61260.0,61259.0,0.04828029]
[1723636915989,0.3618,61260.0,61258.0,0.06537276]
[1723636916183,0.3618,61260.0,61258.0,0.08133816]
[1723636916487,0.001,61260.0,61259.0,0.2818]
[1723636916678,0.001,61260.0,61259.0,1.12640127]
[1723636916883,0.001,61260.0,61259.0,1.52640127]
[1723636917081,0.001,61260.0,61259.0,1.62274844]
[1723636917787,0.001,61260.0,61259.0,1.52640127]
[1723636917991,0.001,61260.0,61259.0,1.62305634]
[1723636918192,0.001,61260.0,61259.0,1.60428833]
[1723636919089,0.001,61260.0,61259.0,1.20428833]
[1723636920588,0.001,61260.0,61259.0,0.42506833]
[1723636920893,0.001,61260.0,61259.0,0.14326833]
[1723636921094,0.001,61260.0,61259.0,0.06538127]
[1723636921287,0.001,61260.0,61259.0,0.16213889]
[1723636921586,0.001,61260.0,61259.0,0.06538127]
[1723636923293,0.001,61260.0,61259.0,0.08066584]
[1723636923492,0.001,61260.0,61258.0,0.08066584]
[1723636923694,0.001,61260.0,61259.0,0.011]
[1723636924195,0.01034978,61260.0,61259.0,0.011]
[1723636924386,0.002,61260.0,61259.0,0.011]
[1723636926289,0.002,61260.0,61259.0,0.09166584]
[1723636926488,0.002,61260.0,61259.0,0.07724839]
[1723636926695,0.002,61260.0,61259.0,0.15789761]
[1723636926990,0.0667,61264.0,61259.0,1.48756978]
[1723636926991,0.3608,61264.0,61259.0,1.48756978]
[1723636927288,0.0002447,61266.0,61261.0,0.09674343]
[1723636927498,0.0002447,61266.0,61260.0,0.0661437]
[1723636927499,0.3608,61263.0,61262.0,0.0661437]
[1723636927882,0.3608,61263.0,61262.0,0.16288713]
[1723636928689,0.3608,61263.0,61262.0,0.0661437]
[1723636930292,0.3618,61263.0,61262.0,0.34388713]
[1723636930494,0.3618,61263.0,61262.0,0.2471437]
[1723636931090,0.3628,61263.0,61262.0,0.2471437]
[1723636932297,0.3628,61263.0,61262.0,0.0771437]
[1723636933996,0.3628,61263.0,61262.0,0.07664698]
[1723636936100,0.3628,61263.0,61262.0,0.15736344]
[1723636936603,0.3628,61263.0,61262.0,0.07664698]
[1723636936803,0.3628,61263.0,61262.0,0.15736576]
[1723636937000,0.3628,61263.0,61262.0,0.011]
[1723636947010,0.3628,61263.0,61262.0,0.09171878]
[1723636947709,0.3628,61263.0,61262.0,0.15755783]
[1723636948107,0.3628,61263.0,61262.0,0.15757939]
[1723636948502,0.3628,61263.0,61262.0,0.09171878]
[1723636948902,0.3628,61263.0,61262.0,0.011]
[1723636949211,0.3628,61263.0,61262.0,0.09171878]
[1723636949710,0.3628,61263.0,61262.0,0.011]
[1723636950306,0.3628,61263.0,61262.0,0.09171878]
[1723636950612,0.3628,61263.0,61262.0,0.011]
[1723636953811,0.42772933,61263.0,61262.0,0.011]
[1723636954313,0.3628,61263.0,61262.0,0.011]
[1723636955110,0.3628,61263.0,61262.0,0.05944274]
[1723636955909,0.3628,61263.0,61262.0,1.13672628]
[1723636957810,0.3628,61263.0,61262.0,0.73672628]
[1723636958503,0.3628,61263.0,61262.0,1.13672628]
[1723636958811,0.3628,61263.0,61262.0,0.73672628]
[1723636959019,0.3628,61263.0,61262.0,0.74500301]
[1723636959316,0.3628,61263.0,61262.0,0.25532301]
[1723636959708,0.3628,61263.0,61262.0,0.74500301]
[1723636960510,0.3628,61263.0,61262.0,0.84183034]
[1723636960908,0.3628,61263.0,61262.0,1.14500301]
[1723636961114,0.3628,61263.0,61262.0,1.24183034]
[1723636961509,0.00016545,61272.0,61263.0,0.48968]
[1723636961715,0.3608,61290.0,61284.0,0.2818]
[1723636961916,0.3608,61290.0,61289.0,0.04833934]
[1723636962109,0.3608,61290.0,61279.0,0.09668626]
[1723636962110,0.3608,61290.0,61287.0,0.06445751]
[1723636962314,0.48948,61289.0,61288.0,0.04834686]
[1723636963225,0.48948,61289.0,61287.0,0.04834686]
[1723636963226,0.0605,61289.0,61287.0,0.04834686]
[1723636963517,0.0605,61289.0,61282.0,0.0002447]
[1723636963518,0.4213,61289.0,61282.0,0.0002447]
[1723636963815,0.42590417,61283.0,61282.0,0.0002447]
[1723636964012,0.3608,61283.0,61282.0,0.0002447]
[1723636964212,1.31542781,61283.0,61282.0,0.0002447]
[1723636964517,0.91542781,61283.0,61282.0,0.0002447]
[1723636964719,1.25032,61283.0,61282.0,0.0002447]
[1723636964924,0.85032,61283.0,61282.0,0.0002447]
[1723636966821,0.85867297,61283.0,61282.0,0.0002447]
[1723636967013,1.25867297,61283.0,61282.0,0.0002447]
[1723636967413,1.25967297,61283.0,61282.0,0.0002447]
[1723636967809,1.26367297,61283.0,61282.0,0.0002447]
[1723636968222,1.26367297,61283.0,61273.0,0.04831195]
[1723636968411,0.3608,61274.0,61273.0,0.04831195]
[1723636970122,0.3608,61274.0,61270.0,0.06441593]
[1723636970511,0.3608,61274.0,61271.0,0.04830988]
[1723636970717,0.3608,61274.0,61270.0,0.04830988]
[1723636971936,0.3608,61274.0,61269.0,0.04830988]
[1723636972111,0.36919763,61274.0,61269.0,0.04830988]
[1723636972516,0.36919763,61274.0,61270.0,0.04830988]
[1723636972719,0.37019763,61274.0,61270.0,0.04830988]
[1723636973221,0.37019763,61274.0,61269.0,0.04830988]
[1723636973418,0.37019763,61274.0,61270.0,0.04830988]
[1723636973727,0.37019763,61274.0,61271.0,0.04830988]
[1723636974027,0.37019763,61274.0,61273.0,0.006]
[1723636974322,0.37119763,61274.0,61273.0,0.006]
[1723636974722,0.37019763,61274.0,61273.0,0.006]
[1723636975724,0.37219763,61274.0,61273.0,0.006]
[1723636976221,0.3638,61274.0,61273.0,0.006]
[1723636976530,0.3628,61274.0,61269.0,0.04830988]
[1723636976718,0.3608,61270.0,61269.0,0.04830988]
[1723636977324,0.3608,61270.0,61267.0,0.06457916]
[1723636978429,0.3618,61270.0,61267.0,0.06457916]
[1723636980439,0.3628,61270.0,61267.0,0.07657916]
[1723636980730,0.0589,61269.0,61268.0,0.04836517]
[1723636980930,0.0589,61269.0,61267.0,0.0605284]
[1723636981643,0.0589,61269.0,61268.0,0.04836517]
[1723636982430,0.0589,61269.0,61267.0,0.01216323]
[1723636982431,0.0599,61269.0,61267.0,0.01216323]
[1723636982633,0.001,61269.0,61267.0,0.01216323]
[1723636982832,0.001,61269.0,61267.0,0.07657916]
[1723636983037,0.001,61269.0,61268.0,0.06441593]
[1723636983531,0.001,61269.0,61268.0,0.07541593]
[1723636983827,0.001,61269.0,61268.0,0.011]
[1723636984430,0.002,61269.0,61268.0,0.07541593]
[1723636985435,0.002,61269.0,61268.0,0.011]
[1723636987631,0.002,61269.0,61268.0,0.07554703]
[1723636988332,0.002,61269.0,61268.0,0.011]
[1723636990230,0.002,61269.0,61268.0,0.07554703]
[1723636990432,0.002,61269.0,61268.0,0.011]
[1723636991033,0.002,61269.0,61268.0,0.07554703]
[1723636992241,0.002,61269.0,61268.0,0.011]
[1723636993536,0.0104537,61269.0,61268.0,0.011]
[1723636994732,0.3712537,61269.0,61268.0,0.011]
[1723636997032,0.3712537,61269.0,61268.0,0.07565269]
[1723636997237,0.4345537,61269.0,61268.0,0.011]
[1723636997534,0.9241937,61269.0,61268.0,0.011]
[1723636997737,0.9241937,61269.0,61268.0,0.05949305]
[1723636997738,0.4345537,61269.0,61268.0,0.05949305]
[1723636998640,0.3712537,61269.0,61268.0,0.011]
[1723636998842,0.3712537,61269.0,61268.0,0.07565269]
[1723636999144,0.3712537,61269.0,61268.0,0.011]
[1723637000336,0.3712537,61269.0,61268.0,0.07564176]
[1723637000531,0.3712537,61269.0,61268.0,0.011]
[1723637000730,0.3712537,61269.0,61268.0,0.07564176]
[1723637000937,0.3712537,61269.0,61268.0,0.011]
[1723637001736,0.43645374,61269.0,61268.0,0.011]
[1723637001946,0.49735374,61269.0,61268.0,0.011]
[1723637002733,0.49735374,61269.0,61268.0,0.05949513]
[1723637002734,0.4321537,61269.0,61268.0,0.05949513]
[1723637002934,0.4321537,61269.0,61268.0,0.04849726]
[1723637003131,0.4321537,61269.0,61267.0,0.04849726]
[1723637003132,0.9217937,61269.0,61267.0,0.04849726]
[1723637003331,0.3712537,61269.0,61265.0,0.04849726]
[1723637003532,0.3628,61269.0,61268.0,0.06464176]
[1723637003735,0.3628,61269.0,61268.0,0.00810276]
[1723637004042,0.3628,61269.0,61267.0,0.08051992]
[1723637004345,0.3628,61269.0,61267.0,0.08850438]
[1723637005638,0.3628,61269.0,61267.0,0.10050438]
[1723637005839,0.3618,61269.0,61267.0,0.10050438]
[1723637006639,0.3628,61269.0,61267.0,0.10050438]
[1723637007245,0.3628,61269.0,61267.0,0.01998446]
[1723637007640,0.06519419,61278.0,61268.0,0.14515473]
[1723637007939,0.0002447,61280.0,61267.0,0.90962446]
[1723637007940,0.3608,61277.0,61275.0,0.0645836]
[1723637008242,0.3608,61277.0,61269.0,0.06440999]
[1723637008243,0.3608,61277.0,61273.0,0.08072369]
[1723637008439,0.3608,61277.0,61276.0,0.0645819]
[1723637009038,0.3608,61277.0,61275.0,0.0645819]
[1723637010938,0.3608,61277.0,61276.0,0.3463819]
[1723637011242,0.3618,61277.0,61276.0,0.2818]
[1723637011844,0.3618,61277.0,61276.0,0.34632206]
[1723637012044,0.3618,61277.0,61276.0,0.2818]
[1723637012445,0.3618,61277.0,61276.0,0.2838]
[1723637013747,0.3608,61277.0,61276.0,0.2838]
[1723637017547,0.3608,61277.0,61276.0,0.7734]
[1723637017847,0.0002447,61280.0,61276.0,1.39686611]
[1723637018055,0.0002447,61280.0,61278.0,0.08052201]
[1723637018244,0.0002447,61280.0,61279.0,0.61336]
[1723637018444,0.0002447,61280.0,61279.0,0.75336]
[1723637018744,0.0002447,61280.0,61279.0,1.15336]
[1723637019849,0.0002447,61280.0,61279.0,0.75336]
[1723637020253,0.0002447,61280.0,61279.0,1.15336]
[1723637021345,0.0002447,61280.0,61279.0,1.29723747]
[1723637021551,0.0002447,61280.0,61279.0,0.75436]
[1723637022058,0.0002447,61280.0,61279.0,1.21652487]
[1723637022252,0.0022447,61280.0,61279.0,0.81652487]
[1723637022456,0.0022447,61280.0,61279.0,1.21652487]
[1723637022650,0.0022447,61280.0,61279.0,0.89688556]
[1723637022958,0.0022447,61280.0,61279.0,1.29688556]
[1723637023153,0.0022447,61280.0,61279.0,0.89688556]
[1723637023456,0.0022447,61280.0,61279.0,0.81652487]
[1723637023651,0.0022447,61280.0,61279.0,0.89672525]
[1723637023849,0.0022447,61280.0,61279.0,0.40716525]
[1723637024259,0.0022447,61280.0,61279.0,0.34514502]
[1723637024464,0.0022447,61280.0,61279.0,0.2648]
[1723637024666,0.0022447,61280.0,61279.0,0.001]
[1723637024967,0.0668447,61280.0,61279.0,0.001]
[1723637025354,0.07526692,61280.0,61279.0,0.001]
[1723637026362,0.0668447,61280.0,61279.0,0.001]
[1723637030669,0.5564047,61280.0,61279.0,0.001]
[1723637031669,0.0668447,61280.0,61279.0,0.001]
[1723637032870,0.5564047,61280.0,61279.0,0.001]
[1723637033172,0.9564047,61280.0,61279.0,0.001]
[1723637036670,0.0668447,61280.0,61279.0,0.001]
[1723637037570,0.0668447,61280.0,61279.0,0.04932487]
[1723637037772,0.0668447,61280.0,61279.0,0.04932475]
[1723637038875,0.0668447,61280.0,61279.0,0.001]
[1723637039480,0.0668447,61280.0,61279.0,0.04933017]
[1723637041179,0.0668447,61280.0,61279.0,0.001]
[1723637045582,0.0022447,61280.0,61279.0,0.001]
[1723637046479,0.0022447,61280.0,61279.0,0.00958676]
[1723637047170,0.0022447,61280.0,61279.0,0.06540722]
[1723637047481,0.0022447,61280.0,61279.0,0.001]
[1723637048877,0.0022447,61280.0,61278.0,0.06440722]
[1723637049074,0.0022447,61280.0,61279.0,0.001]
[1723637050180,0.0012447,61280.0,61279.0,0.001]
[1723637051175,0.0638447,61280.0,61279.0,0.001]
[1723637051686,0.0638447,61280.0,61278.0,0.06440722]
[1723637052281,0.0638447,61280.0,61278.0,0.06840722]
[1723637052282,0.0648447,61280.0,61278.0,0.06840722]
[1723637052479,0.0648447,61280.0,61279.0,0.06440722]
[1723637053279,0.0648447,61280.0,61278.0,0.004]
[1723637053280,0.0638447,61280.0,61278.0,0.06440722]
[1723637053584,0.0638447,61280.0,61279.0,0.06840722]
[1723637054082,0.0628447,61280.0,61279.0,0.06840722]
[1723637054282,0.0002447,61280.0,61279.0,0.004]
[1723637054871,0.0002447,61280.0,61279.0,0.14779314]
[1723637055275,0.0012447,61280.0,61279.0,0.14779314]
[1723637055488,0.0022447,61280.0,61279.0,0.14379314]
[1723637055989,0.0022447,61280.0,61279.0,0.06344812]
[1723637056188,0.0022447,61280.0,61279.0,0.14405432]
[1723637057183,0.0012447,61280.0,61279.0,0.14405432]
[1723637057380,0.0012447,61280.0,61279.0,0.06744812]
[1723637057687,0.0012447,61280.0,61279.0,0.34924812]
[1723637057883,0.0012447,61280.0,61279.0,0.41104812]
[1723637058588,0.0012447,61280.0,61279.0,0.3476]
[1723637058780,0.0012447,61280.0,61279.0,0.41056781]
[1723637059588,0.0012447,61280.0,61279.0,0.50743624]
[1723637060683,0.0012447,61280.0,61279.0,0.06696781]
[1723637061284,0.0012447,61280.0,61279.0,0.34876781]
[1723637062580,0.0012447,61280.0,61279.0,0.06696781]
[1723637063182,0.0012447,61280.0,61279.0,0.06701561]
[1723637066386,0.0012447,61280.0,61279.0,0.34881561]
[1723637067784,0.0012447,61280.0,61279.0,0.34879572]
[1723637068184,0.0012447,61280.0,61279.0,0.06699572]
[1723637068387,0.0012447,61280.0,61279.0,0.1475837]
[1723637068692,0.0012447,61280.0,61279.0,0.004]
[1723637071097,0.0012447,61280.0,61279.0,0.42986105]
[1723637071588,0.0012447,61280.0,61279.0,0.36638798]
[1723637072092,0.0012447,61280.0,61279.0,0.34899582]
[1723637072282,0.0012447,61280.0,61279.0,0.2858]
[1723637072896,0.0012447,61280.0,61279.0,0.36637343]
[1723637073209,0.0012447,61280.0,61279.0,0.42974804]
[1723637073397,0.0012447,61280.0,61279.0,0.2858]
[1723637073694,0.0012447,61280.0,61279.0,0.42979925]
[1723637073891,0.0012447,61280.0,61279.0,0.36637343]
[1723637074089,0.0012447,61280.0,61279.0,0.2858]
[1723637075096,0.3620447,61280.0,61279.0,0.2858]
[1723637075293,0.3620447,61280.0,61279.0,0.004]
[1723637075488,0.3620447,61280.0,61279.0,0.06848358]
[1723637075890,0.3620447,61280.0,61279.0,0.004]
[1723637080995,0.3620447,61280.0,61279.0,0.06848358]
[1723637082700,0.3620447,61280.0,61279.0,0.004]
[1723637083401,0.3620447,61280.0,61279.0,0.0684523]
[1723637084206,0.3620447,61280.0,61279.0,0.004]
[1723637085901,0.3620447,61280.0,61279.0,0.1168]
[1723637086394,0.3620447,61280.0,61279.0,0.16511436]
[1723637087004,0.3620447,61280.0,61279.0,0.1168]
[1723637088103,0.7228447,61280.0,61279.0,0.1168]
[1723637093306,0.3620447,61280.0,61279.0,0.1168]
[1723637095009,0.3620447,61280.0,61279.0,0.2603121]
[1723637095309,0.3620447,61280.0,61279.0,0.1168]
[1723637096301,0.3620447,61280.0,61279.0,0.17992074]
[1723637096302,0.0012447,61280.0,61279.0,0.17992074]
[1723637100204,0.0012447,61280.0,61279.0,1.06948074]
[1723637100409,0.06519419,61299.0,61279.0,1.41053401]
[1723637100607,0.06519419,61302.0,61296.0,0.1128]
[1723637100813,0.12409419,61303.0,61296.0,0.1128]
[1723637101014,0.12409419,61303.0,61296.0,0.2313]
[1723637101208,0.12409419,61303.0,61295.0,0.06436104]
[1723637101514,0.3608,61296.0,61295.0,0.1128]
[1723637101715,0.4175,61296.0,61295.0,0.1128]
[1723637101911,0.4175,61296.0,61290.0,0.00024469]
[1723637101912,0.4175,61296.0,61292.0,0.04824804]
[1723637102609,0.4175,61296.0,61293.0,0.04824804]
[1723637102804,0.4175,61296.0,61292.0,0.04824804]
[1723637103226,0.4175,61296.0,61290.0,0.00024469]
[1723637103227,0.4175,61296.0,61293.0,0.04824804]
[1723637103420,0.3608,61296.0,61293.0,0.04824804]
[1723637103710,0.3748,61296.0,61294.0,0.04824804]
[1723637103918,0.3748,61296.0,61292.0,0.04824804]
[1723637104310,0.3888,61296.0,61292.0,0.04924804]
[1723637104515,0.3888,61296.0,61292.0,0.001]
[1723637105104,0.3868,61296.0,61292.0,0.04924804]
[1723637106712,0.3868,61296.0,61293.0,0.04824804]
[1723637107118,0.3868,61296.0,61292.0,0.04924804]
[1723637108417,0.3868,61296.0,61291.0,0.33014804]
[1723637108722,0.3868,61296.0,61291.0,0.04824804]
[1723637109114,0.3868,61296.0,61290.0,0.04849273]
[1723637109315,0.3608,61291.0,61290.0,0.00024469]
[1723637109817,0.02692,61296.0,61290.0,0.00024469]
[1723637110015,0.026,61296.0,61292.0,0.04820637]
[1723637110211,0.014,61296.0,61291.0,0.04820637]
[1723637110420,0.024,61296.0,61290.0,0.04845106]
[1723637110738,0.3608,61291.0,61290.0,0.00024469]
[1723637110922,0.3608,61291.0,61290.0,0.04845473]
[1723637111323,0.3608,61291.0,61290.0,0.00024469]
[1723637112724,0.026,61296.0,61290.0,0.00024469]
[1723637112925,0.026,61296.0,61294.0,0.04820163]
[1723637113121,0.026,61296.0,61293.0,0.04820163]
[1723637113328,0.026,61296.0,61295.0,0.04820163]
[1723637113827,0.026,61296.0,61293.0,0.3608]
[1723637113828,0.026,61296.0,61293.0,0.42516104]
[1723637114326,0.014,61296.0,61293.0,0.3608]
[1723637114717,0.00874401,61297.0,61293.0,0.3608]
[1723637114928,0.1174,61301.0,61296.0,0.04818241]
[1723637116531,0.1174,61301.0,61295.0,0.04818241]
[1723637116826,0.1174,61301.0,61294.0,0.04818241]
[1723637117230,0.1174,61301.0,61296.0,0.04818241]
[1723637117425,0.014,61297.0,61296.0,0.04818241]
[1723637118528,0.12610829,61301.0,61296.0,0.04818241]
[1723637118529,0.14010829,61301.0,61296.0,0.04818241]
[1723637119127,0.3608,61300.0,61297.0,0.04818241]
[1723637119322,0.3608,61300.0,61293.0,0.3608]
[1723637119323,0.3608,61300.0,61296.0,0.04818241]
[1723637120324,0.3608,61300.0,61293.0,0.36929319]
[1723637121134,0.014,61297.0,61294.0,0.2819]
[1723637121338,0.014,61297.0,61294.0,0.3403]
[1723637122030,0.3608,61300.0,61294.0,0.3403]
[1723637122232,0.3748,61300.0,61294.0,0.3403]
[1723637122421,0.43999419,61300.0,61294.0,0.3403]
[1723637123237,0.43999419,61300.0,61294.0,0.3981]
[1723637123439,0.45399419,61300.0,61294.0,0.3981]
[1723637124533,0.06519419,61299.0,61294.0,0.3981]
[1723637125232,0.45491419,61300.0,61294.0,0.3981]
[1723637125432,0.06519419,61299.0,61294.0,0.3981]
[1723637126023,0.45491419,61300.0,61294.0,0.3981]
[1723637126233,0.014,61297.0,61294.0,0.3981]
[1723637126832,0.014,61297.0,61293.0,0.00849319]
[1723637127034,0.3608,61294.0,61291.0,0.04818241]
[1723637127334,0.3608,61294.0,61290.0,0.00024469]
[1723637128337,0.3608,61294.0,61290.0,0.08069599]
[1723637128541,0.3608,61294.0,61290.0,0.00024469]
[1723637128740,0.3608,61293.0,61283.0,0.00849882]
[1723637128938,0.3608,61284.0,61283.0,0.07289255]
[1723637129238,0.3608,61284.0,61283.0,0.00849882]
[1723637129831,0.3608,61284.0,61276.0,0.06439373]
[1723637130036,0.3608,61278.0,61276.0,0.06439373]
[1723637130233,0.3608,61278.0,61277.0,0.06439373]
[1723637130435,0.3608,61278.0,61275.0,0.06439373]
[1723637130739,0.3608,61278.0,61274.0,0.06439373]
[1723637131040,0.3608,61278.0,61275.0,0.06439373]
[1723637131236,0.3608,61278.0,61273.0,0.06439373]
[1723637132534,0.3608,61278.0,61274.0,0.06439373]
[1723637132727,0.36941814,61278.0,61273.0,0.06439373]
[1723637133148,0.36941814,61278.0,61272.0,0.06439373]
[1723637133435,0.36941814,61278.0,61269.0,0.2819]
[1723637133436,0.36941814,61278.0,61271.0,0.06439373]
[1723637133832,0.36941814,61278.0,61275.0,0.004]
[1723637134731,0.36941814,61278.0,61276.0,0.004]
[1723637135536,0.37041814,61278.0,61276.0,0.004]
[1723637135731,0.37141814,61278.0,61275.0,0.008]
[1723637137042,0.37141814,61278.0,61275.0,0.004]
[1723637137641,0.37241814,61278.0,61275.0,0.004]
[1723637138632,0.37141814,61278.0,61275.0,0.008]
[1723637139031,0.36941814,61278.0,61275.0,0.004]
[1723637140737,0.37041814,61278.0,61275.0,0.008]
[1723637144938,0.3618,61278.0,61275.0,0.008]
[1723637145240,0.3618,61278.0,61275.0,0.158]
[1723637145446,0.001,61278.0,61275.0,0.158]
[1723637145949,0.001,61278.0,61275.0,0.22239373]
[1723637146140,0.001,61278.0,61275.0,0.158]
[1723637146743,0.001,61278.0,61275.0,0.008]
[1723637148252,0.001,61278.0,61275.0,0.01668539]
[1723637148445,0.001,61278.0,61275.0,0.008]
[1723637150049,0.001,61278.0,61277.0,0.2819]
[1723637152343,0.001,61278.0,61277.0,0.2859]
[1723637152747,0.001,61278.0,61277.0,0.004]
[1723637153143,0.001,61278.0,61277.0,0.006]
[1723637154757,0.001,61278.0,61277.0,0.07039373]
[1723637155054,0.001,61278.0,61277.0,0.006]
[1723637155249,0.001,61278.0,61277.0,0.07039373]
[1723637156257,0.001,61278.0,61277.0,0.006]
[1723637157847,0.001,61278.0,61277.0,0.1188]
[1723637158862,0.001,61278.0,61277.0,0.19926992]
[1723637159153,0.001,61278.0,61277.0,0.1188]
[1723637159861,0.001,61278.0,61277.0,0.2879]
[1723637160353,0.001,61278.0,61277.0,0.36842802]
[1723637160555,0.06519419,61292.0,61277.0,1.29826]
[1723637160760,0.06519419,61292.0,61286.0,0.06440862]
[1723637160966,0.06519419,61294.0,61287.0,0.06440862]
[1723637161461,0.3608,61295.0,61287.0,0.08051078]
[1723637161761,0.3608,61295.0,61289.0,0.08051078]
[1723637162252,0.3608,61295.0,61288.0,0.08051078]
[1723637162652,0.005,61289.0,61288.0,0.08051078]
[1723637162853,0.005,61289.0,61285.0,0.73931293]
[1723637163055,0.005,61289.0,61288.0,0.08043026]
[1723637163356,0.005,61289.0,61287.0,0.001]
[1723637163357,0.005,61289.0,61287.0,0.08143026]
[1723637163754,0.0062447,61290.0,61287.0,0.08143026]
[1723637163957,0.0062447,61290.0,61289.0,0.06432153]
[1723637164267,0.0002447,61290.0,61289.0,0.06432231]
[1723637165154,0.009,61289.0,61285.0,0.0732474]
[1723637165350,0.4197,61288.0,61282.0,0.06432231]
[1723637165558,0.3608,61283.0,61280.0,0.06432231]
[1723637165863,0.3608,61283.0,61278.0,0.39232231]
[1723637166159,0.4196,61282.0,61278.0,0.37626046]
[1723637166359,0.4196,61282.0,61278.0,0.328]
[1723637167556,0.4196,61282.0,61278.0,0.06432231]
[1723637167857,0.4196,61282.0,61277.0,0.06432231]
[1723637168262,0.4196,61282.0,61278.0,0.005]
[1723637168773,0.3608,61282.0,61278.0,0.005]
[1723637168955,0.3608,61282.0,61278.0,0.12792231]
[1723637169153,0.001,61283.0,61279.0,0.06432231]
[1723637169352,0.001,61283.0,61282.0,0.34622231]
[1723637169660,0.3608,61284.0,61282.0,0.34622231]
[1723637169863,0.0589,61288.0,61282.0,0.2819]
[1723637170060,0.3608,61285.0,61283.0,0.06432231]
[1723637170459,0.3608,61285.0,61282.0,0.34622231]
[1723637170857,0.3608,61285.0,61282.0,0.2819]
[1723637171158,0.3608,61285.0,61282.0,0.35515217]
[1723637172068,0.3648,61285.0,61282.0,0.35515217]
[1723637173559,0.004,61285.0,61282.0,0.35515217]
[1723637173759,0.004,61285.0,61284.0,0.06432231]
[1723637173955,0.004,61285.0,61282.0,0.29082986]
[1723637174761,0.004,61285.0,61282.0,0.37126012]
[1723637175767,0.006,61285.0,61282.0,0.37126012]
[1723637176162,0.004,61285.0,61282.0,0.37126012]
[1723637176564,0.004,61285.0,61284.0,0.3608]
[1723637178072,0.006,61285.0,61284.0,0.3608]
[1723637178573,0.008,61285.0,61284.0,0.3608]
[1723637179171,0.008,61285.0,61284.0,0.44118727]
[1723637181363,0.008,61285.0,61284.0,0.3608]
[1723637182076,0.008,61285.0,61284.0,0.44118727]
[1723637182571,0.008,61285.0,61284.0,0.3608]
[1723637182777,0.008,61285.0,61284.0,0.4411732]
[1723637184572,0.008,61285.0,61284.0,0.5811732]
[1723637184768,0.008,61285.0,61284.0,0.4411732]
[1723637184971,0.008,61285.0,61284.0,0.3608]
[1723637185972,0.008,61285.0,61284.0,0.4736]
[1723637186371,0.0002447,61290.0,61284.0,0.5700515]
[1723637186575,1e-08,61290.0,61289.0,0.4736]
[1723637187179,1e-08,61290.0,61289.0,0.3608]
[1723637187477,1e-08,61290.0,61289.0,0.4736]
[1723637187674,0.0607,61303.0,61289.0,1.50308]
[1723637187880,0.42599419,61307.0,61302.0,0.2818]
[1723637187881,0.3618,61307.0,61302.0,0.2818]
[1723637188069,0.3608,61307.0,61302.0,0.2818]
[1723637188666,0.3608,61307.0,61302.0,0.28983445]
[1723637189269,0.3658,61307.0,61302.0,0.28983445]
[1723637190977,0.3658,61307.0,61302.0,0.00803445]
[1723637191174,0.3658,61307.0,61298.0,0.0002447]
[1723637191175,0.3608,61303.0,61298.0,0.0002447]
[1723637191481,0.3608,61300.0,61298.0,0.0002447]
[1723637191778,0.1765,61299.0,61298.0,0.0002447]
[1723637192781,0.0606,61299.0,61298.0,0.0002447]
[1723637193674,0.0606,61299.0,61298.0,0.0012447]
[1723637193877,0.0706,61299.0,61298.0,0.0012447]
[1723637194778,0.0706,61299.0,61298.0,0.01028668]
[1723637194980,0.0706,61299.0,61298.0,0.0012447]
[1723637195174,0.01,61299.0,61298.0,0.00944077]
[1723637195484,0.01,61299.0,61298.0,0.0012447]
[1723637195677,0.01,61299.0,61298.0,0.00958838]
[1723637196386,0.017,61299.0,61298.0,0.01058838]
[1723637196981,0.004,61299.0,61298.0,0.00858838]
[1723637198188,0.001,61299.0,61298.0,0.01158838]
[1723637198388,0.003,61299.0,61298.0,0.01158838]
[1723637199685,0.002,61299.0,61298.0,0.01158838]
[1723637200278,0.002,61299.0,61298.0,0.00858838]
[1723637200678,0.003,61299.0,61298.0,0.00858838]
[1723637201383,0.003,61299.0,61298.0,0.29038838]
[1723637202383,0.003,61299.0,61298.0,0.29438838]
[1723637203178,0.06,61309.0,61298.0,1.26405229]
[1723637203380,4.87302,61320.0,61307.0,0.2818]
[1723637203581,4.8721,61320.0,61310.0,0.0642261]
[1723637203775,4.8721,61320.0,61310.0,0.63932]
[1723637203776,4.87302,61320.0,61310.0,0.63932]
[1723637204084,4.8721,61320.0,61319.0,0.70678972]
[1723637204276,4.3221,61320.0,61319.0,0.6426]
[1723637204583,4.3221,61320.0,61319.0,1.13184]
[1723637205890,4.3221,61320.0,61319.0,1.69184]
[1723637206292,4.01125682,61320.0,61319.0,1.75586959]
[1723637206488,4.01125682,61320.0,61319.0,1.69184]
[1723637206785,3.97067631,61320.0,61319.0,1.70077907]
[1723637206988,3.42067631,61320.0,61319.0,1.70077907]
[1723637207186,3.42067631,61320.0,61319.0,1.98257907]
[1723637207187,2.92988943,61320.0,61319.0,1.98257907]
[1723637207487,2.93888943,61320.0,61319.0,1.70177907]
[1723637207688,2.93888943,61320.0,61319.0,1.79002374]
[1723637207879,2.93888943,61320.0,61319.0,2.03450615]
[1723637208086,2.92388943,61320.0,61319.0,1.78204298]
[1723637208279,2.83971394,61320.0,61319.0,1.78204298]
[1723637208484,2.78464394,61320.0,61319.0,1.70277907]
[1723637208686,2.73064394,61320.0,61319.0,1.70277907]
[1723637208886,2.70264394,61320.0,61319.0,2.23708452]
[1723637209091,2.50129594,61320.0,61319.0,2.23708452]
[1723637209288,2.21369823,61320.0,61319.0,2.22887229]
[1723637209479,1.39563741,61320.0,61319.0,2.57178808]
[1723637209684,1.26117741,61320.0,61319.0,2.58547019]
[1723637209887,0.06427441,61320.0,61319.0,2.84702317]
[1723637210088,0.0002447,61326.0,61319.0,2.35778317]
[1723637210393,0.36145441,61349.0,61325.0,0.6426]
[1723637210592,0.1131,61356.0,61348.0,0.2818]
[1723637210780,0.00865441,61352.0,61347.0,0.3608]
[1723637210985,0.00865441,61352.0,61351.0,0.2818]
[1723637211183,0.1131,61356.0,61351.0,0.2818]
[1723637211383,0.1131,61356.0,61352.0,0.3608]
[1723637211384,0.00865441,61353.0,61352.0,0.3608]
[1723637212688,0.1131,61356.0,61352.0,0.84976]